Workbook

Sheet 1
A1: Школа | B1: МБОУ "Лицей №5" Вахитовского района г. Казани | E1: Отд./корп | I1: День | J1: 2023-05-22
A3: Прием пищи | B3: Раздел | C3: № рец. | D3: Блюдо | E3: Выход, г | F3: Цена | G3: Калорийность | H3: Белки | I3: Жиры | J3: Углеводы
A4: Завтрак | B4: гор.блюдо | C4: ТТК 2022 г/№ 71/2015 г | D4: Ёжики мясные с рисом в соусе томатном/Овощи натуральные свежие (огурцы) | E4: 60/40/60 | F4: ='[1]8-13, 22-27.05.2023'!F4 -> 0.00 | G4: 177 | H4: 9.98 | I4: 10.98 | J4: 10.14
B5: гор блюдо | C5: ='[1]8-13, 22-27.05.2023'!C5 -> № 202/2015 | D5: ='[1]8-13, 22-27.05.2023'!D5 -> Макаронные изделия отварные | E5: ='[1]8-13, 22-27.05.2023'!E5 -> 150 | F5: ='[1]8-13, 22-27.05.2023'!F5 -> 0.00 | G5: ='[1]8-13, 22-27.05.2023'!G5 -> 207 | H5: ='[1]8-13, 22-27.05.2023'!H5 -> 5.64 | I5: ='[1]8-13, 22-27.05.2023'!I5 -> 4.46 | J5: ='[1]8-13, 22-27.05.2023'!J5 -> 35.94
B6: гор.напиток | C6: ='[1]8-13, 22-27.05.2023'!C6 -> № 648/2004 г | D6: ='[1]8-13, 22-27.05.2023'!D6 -> Компот из замороженной компотной смеси | E6: ='[1]8-13, 22-27.05.2023'!E6 -> 180 | F6: ='[1]8-13, 22-27.05.2023'!F6 -> 0.00 | G6: ='[1]8-13, 22-27.05.2023'!G6 -> 41 | H6: ='[1]8-13, 22-27.05.2023'!H6 -> 0.12 | I6: ='[1]8-13, 22-27.05.2023'!I6 -> 0.02 | J6: ='[1]8-13, 22-27.05.2023'!J6 -> 10.03
B7: хлеб | D7: ='[1]8-13, 22-27.05.2023'!D7 -> Хлеб ржано-пшеничный | E7: ='[1]8-13, 22-27.05.2023'!E7 -> 25 | F7: ='[1]8-13, 22-27.05.2023'!F7 -> 0.00 | G7: ='[1]8-13, 22-27.05.2023'!G7 -> 55 | H7: ='[1]8-13, 22-27.05.2023'!H7 -> 1.25 | I7: ='[1]8-13, 22-27.05.2023'!I7 -> 0.25 | J7: ='[1]8-13, 22-27.05.2023'!J7 -> 11.25
B8: сладкое | C8: № 71/2015г | D8: Вафли весовые | E8: 40 | G8: 93 | H8: 2.26 | I8: 2.24 | J8: 16.00
A9: ИТОГО | E9: 555 | G9: =SUM(G4:G8) -> 573 | H9: =SUM(H4:H8) -> 19.25 | I9: =SUM(I4:I8) -> 17.95 | J9: =SUM(J4:J8) -> 83.36
A10: Завтрак 2 | B10: фрукты
A13: Обед | B13: закуска
B14: 1 блюдо
B15: 2 блюдо
B16: гарнир
B17: сладкое
B18: хлеб бел.
B19: хлеб черн.
